[Event "Early-Titled-Tuesday-Blitz-October-10-2023"]
[Site "Chess.com"]
[Date "2023.10.10"]
[Round "7"]
[White "LileKoridze"]
[Black "DanyKopy"]
[Result "1-0"]
[WhiteElo "2350"]
[BlackElo "2547"]
[TimeControl "180+1"]
[EndTime "9:15:16 PDT"]
[Termination "LileKoridze won on time"]

1. d4 {[%clk 0:03:00.9]} 1... Nf6 {[%clk 0:02:48.4]} 2. c4 {[%clk 0:03:00.9]}
2... g6 {[%clk 0:02:41]} 3. Nc3 {[%clk 0:02:59.6]} 3... d5 {[%clk 0:02:41.5]} 4.
cxd5 {[%clk 0:02:53.4]} 4... Nxd5 {[%clk 0:02:42.4]} 5. Bd2 {[%clk 0:02:51.6]}
5... Bg7 {[%clk 0:02:41.6]} 6. e4 {[%clk 0:02:51.2]} 6... Nb6 {[%clk 0:02:40.8]}
7. d5 {[%clk 0:02:49.8]} 7... O-O {[%clk 0:02:37.7]} 8. Nf3 {[%clk 0:02:49.3]}
8... c6 {[%clk 0:02:37.1]} 9. dxc6 {[%clk 0:02:48.1]} 9... Nxc6 {[%clk
0:02:37.1]} 10. Be2 {[%clk 0:02:48.1]} 10... Bg4 {[%clk 0:02:34.4]} 11. O-O
{[%clk 0:02:47.6]} 11... Bxf3 {[%clk 0:02:29.5]} 12. Bxf3 {[%clk 0:02:46.9]}
12... Nc4 {[%clk 0:02:29.6]} 13. Bc1 {[%clk 0:02:33.3]} 13... Qxd1 {[%clk
0:02:27.9]} 14. Rxd1 {[%clk 0:02:32.8]} 14... Rfd8 {[%clk 0:02:26.8]} 15. Rb1
{[%clk 0:02:26.7]} 15... Rxd1+ {[%clk 0:02:16.7]} 16. Bxd1 {[%clk 0:02:26.4]}
16... Rd8 {[%clk 0:02:16.8]} 17. Bc2 {[%clk 0:02:24.9]} 17... Nd4 {[%clk
0:01:47.7]} 18. Bd1 {[%clk 0:02:12.2]} 18... Nb5 {[%clk 0:01:35]} 19. Nd5 {[%clk
0:01:59.1]} 19... e6 {[%clk 0:01:10.7]} 20. Bg5 {[%clk 0:01:57.9]} 20... Rd6
{[%clk 0:00:24.5]} 21. Nf6+ {[%clk 0:01:24.5]} 21... Kh8 {[%clk 0:00:23.7]} 22.
Bb3 {[%clk 0:00:59.2]} 22... Nd2 {[%clk 0:00:18.5]} 23. Rc1 {[%clk 0:00:55.2]}
23... Rc6 {[%clk 0:00:01.9]} 24. Rd1 {[%clk 0:00:41]} 24... Rd6 {[%clk
0:00:02.3]} 25. e5 {[%clk 0:00:40.8]} 25... Rd4 {[%clk 0:00:02.3]} 26. Rxd2
{[%clk 0:00:40.1]} 26... Rxd2 {[%clk 0:00:02.2]} 27. Bxd2 {[%clk 0:00:40.7]}
27... Nd4 {[%clk 0:00:02.5]} 28. Kf1 {[%clk 0:00:36.4]} 28... Nc6 {[%clk
0:00:01.9]} 29. f4 {[%clk 0:00:35]} 29... Bf8 {[%clk 0:00:02]} 30. Ne4 {[%clk
0:00:33.8]} 30... Nd4 {[%clk 0:00:01.4]} 31. Bc3 {[%clk 0:00:31.4]} 31... Nf5
{[%clk 0:00:01.7]} 32. Ke2 {[%clk 0:00:29.3]} 32... Kg7 {[%clk 0:00:02.1]} 33.
g4 {[%clk 0:00:25.8]} 33... Nh4 {[%clk 0:00:02.2]} 34. Be1 {[%clk 0:00:25.8]}
34... Ng2 {[%clk 0:00:01.6]} 35. Bg3 {[%clk 0:00:24.1]} 1-0

[Event "Early-Titled-Tuesday-Blitz-October-10-2023"]
[Site "Chess.com"]
[Date "2023.10.10"]
[Round "7"]
[White "GMBenjaminBok"]
[Black "Man-Chuk"]
[Result "1-0"]
[WhiteElo "3018"]
[BlackElo "2760"]
[TimeControl "180+1"]
[EndTime "9:15:21 PDT"]
[Termination "GMBenjaminBok won on time"]

1. d4 {[%clk 0:03:00.9]} 1... Nf6 {[%clk 0:03:00.1]} 2. c4 {[%clk 0:03:01.2]}
2... e6 {[%clk 0:03:00.4]} 3. Nc3 {[%clk 0:03:01.5]} 3... Bb4 {[%clk 0:03:00.4]}
4. Qc2 {[%clk 0:03:01.7]} 4... O-O {[%clk 0:02:59.1]} 5. a3 {[%clk 0:03:01.3]}
5... Bxc3+ {[%clk 0:02:59.2]} 6. Qxc3 {[%clk 0:03:02.2]} 6... d5 {[%clk
0:02:57.5]} 7. Bg5 {[%clk 0:03:02.1]} 7... dxc4 {[%clk 0:02:54.7]} 8. Qxc4
{[%clk 0:03:03]} 8... b6 {[%clk 0:02:54]} 9. Rd1 {[%clk 0:03:03]} 9... Ba6
{[%clk 0:02:51.8]} 10. Qa4 {[%clk 0:03:02.9]} 10... h6 {[%clk 0:02:49.7]} 11.
Bh4 {[%clk 0:03:02.9]} 11... Qd7 {[%clk 0:02:38.6]} 12. Qc2 {[%clk 0:03:02.3]}
12... Rc8 {[%clk 0:02:29.8]} 13. Bxf6 {[%clk 0:02:58.5]} 13... gxf6 {[%clk
0:02:29.9]} 14. e4 {[%clk 0:02:46.7]} 14... c5 {[%clk 0:02:21.6]} 15. d5 {[%clk
0:02:34.9]} 15... f5 {[%clk 0:02:07.7]} 16. Bxa6 {[%clk 0:01:08.8]} 16... Nxa6
{[%clk 0:02:06.8]} 17. d6 {[%clk 0:00:59.7]} 17... fxe4 {[%clk 0:01:38.2]} 18.
Qxe4 {[%clk 0:01:00.6]} 18... Qc6 {[%clk 0:00:43.8]} 19. Qg4+ {[%clk 0:00:57.8]}
19... Kh7 {[%clk 0:00:44.1]} 20. Nf3 {[%clk 0:00:57.7]} 20... Rg8 {[%clk
0:00:42.5]} 21. Qf4 {[%clk 0:00:55.4]} 21... Rxg2 {[%clk 0:00:28.3]} 22. d7
{[%clk 0:00:23]} 22... Rd8 {[%clk 0:00:20.6]} 23. Ne5 {[%clk 0:00:22]} 23... Qb7
{[%clk 0:00:19]} 24. f3 {[%clk 0:00:05]} 24... Rg7 {[%clk 0:00:06.6]} 25. Qf6
{[%clk 0:00:04.5]} 25... Qb8 {[%clk 0:00:01.8]} 26. Kf2 {[%clk 0:00:04.7]} 26...
Rdg8 {[%clk 0:00:01.8]} 27. d8=Q {[%clk 0:00:03.4]} 27... Rg2+ {[%clk
0:00:01.8]} 28. Kf1 {[%clk 0:00:03.1]} 28... Rxd8 {[%clk 0:00:01.5]} 29. Rxd8
{[%clk 0:00:03.1]} 1-0

[Event "Early-Titled-Tuesday-Blitz-October-10-2023"]
[Site "Chess.com"]
[Date "2023.10.10"]
[Round "7"]
[White "DeArron_Fox"]
[Black "astralpulse"]
[Result "0-1"]
[WhiteElo "2531"]
[BlackElo "2712"]
[TimeControl "180+1"]
[EndTime "9:15:21 PDT"]
[Termination "astralpulse won on time"]

1. d4 {[%clk 0:03:00.9]} 1... d5 {[%clk 0:02:59.4]} 2. c4 {[%clk 0:02:56.5]}
2... e6 {[%clk 0:02:59.5]} 3. Nc3 {[%clk 0:02:56.8]} 3... Nf6 {[%clk 0:02:59.5]}
4. cxd5 {[%clk 0:02:54.9]} 4... exd5 {[%clk 0:02:59.7]} 5. Bg5 {[%clk
0:02:55.4]} 5... Be7 {[%clk 0:02:59.6]} 6. e3 {[%clk 0:02:55.7]} 6... c6 {[%clk
0:02:59.5]} 7. Bd3 {[%clk 0:02:56]} 7... Nbd7 {[%clk 0:02:59]} 8. Qc2 {[%clk
0:02:54.7]} 8... Nh5 {[%clk 0:02:57.7]} 9. Bxe7 {[%clk 0:02:53.3]} 9... Qxe7
{[%clk 0:02:57.9]} 10. Nge2 {[%clk 0:02:52.4]} 10... g6 {[%clk 0:02:56.5]} 11.
O-O {[%clk 0:02:52.4]} 11... Nb6 {[%clk 0:02:52.6]} 12. Rae1 {[%clk 0:02:48]}
12... O-O {[%clk 0:02:49.5]} 13. Nc1 {[%clk 0:02:42.4]} 13... Ng7 {[%clk
0:02:34.7]} 14. f3 {[%clk 0:02:40.5]} 14... c5 {[%clk 0:02:23.9]} 15. dxc5
{[%clk 0:02:12.6]} 15... Qxc5 {[%clk 0:02:23]} 16. Nb3 {[%clk 0:02:13.1]} 16...
Qd6 {[%clk 0:02:00.9]} 17. e4 {[%clk 0:01:08]} 17... Be6 {[%clk 0:01:56.3]} 18.
e5 {[%clk 0:00:58.1]} 18... Qe7 {[%clk 0:01:42.5]} 19. Nd4 {[%clk 0:00:54.1]}
19... Rac8 {[%clk 0:01:35.2]} 20. f4 {[%clk 0:00:36.7]} 20... Qb4 {[%clk
0:01:33.5]} 21. Qf2 {[%clk 0:00:30.2]} 21... Nc4 {[%clk 0:01:31.1]} 22. Re2
{[%clk 0:00:27.4]} 22... Nxb2 {[%clk 0:01:26.2]} 23. Nxd5 {[%clk 0:00:22.2]}
23... Nxd3 {[%clk 0:01:22.8]} 24. Nxb4 {[%clk 0:00:21.3]} 24... Nxf2 {[%clk
0:01:22.8]} 25. Rexf2 {[%clk 0:00:12.1]} 25... Rc4 {[%clk 0:01:21.9]} 26. Nxe6
{[%clk 0:00:11.3]} 26... fxe6 {[%clk 0:01:20.8]} 27. Rb2 {[%clk 0:00:08]} 27...
Nf5 {[%clk 0:01:18.7]} 28. g3 {[%clk 0:00:04]} 28... Rd8 {[%clk 0:01:16.9]} 29.
Rff2 {[%clk 0:00:01.9]} 29... h5 {[%clk 0:01:16.1]} 30. Kg2 {[%clk 0:00:02.2]}
30... h4 {[%clk 0:01:11.7]} 31. Nc2 {[%clk 0:00:02.1]} 31... Rdc8 {[%clk
0:01:07.5]} 32. Ne1 {[%clk 0:00:01.8]} 32... Ne3+ {[%clk 0:01:02.4]} 33. Kf3
{[%clk 0:00:01.8]} 33... Nd1 {[%clk 0:01:01]} 34. Rxb7 {[%clk 0:00:01.2]} 34...
Nxf2 {[%clk 0:00:59]} 35. Kxf2 {[%clk 0:00:02.1]} 35... R8c7 {[%clk 0:00:57.8]}
36. Rb8+ {[%clk 0:00:02.1]} 36... Kg7 {[%clk 0:00:56.6]} 37. Nf3 {[%clk
0:00:02.1]} 37... Rc2+ {[%clk 0:00:51.8]} 38. Ke1 {[%clk 0:00:01.9]} 38... Rxa2
{[%clk 0:00:50.9]} 39. Kd1 {[%clk 0:00:01.7]} 39... hxg3 {[%clk 0:00:45.2]} 40.
hxg3 {[%clk 0:00:02.6]} 40... Rc3 {[%clk 0:00:43.3]} 41. Ng5 {[%clk 0:00:02.5]}
41... Rxg3 {[%clk 0:00:42.8]} 42. Nxe6+ {[%clk 0:00:02.7]} 42... Kf7 {[%clk
0:00:39.9]} 43. Ng5+ {[%clk 0:00:02.8]} 43... Ke7 {[%clk 0:00:39.9]} 44. Rb7+
{[%clk 0:00:02.3]} 44... Ke8 {[%clk 0:00:39.3]} 45. Rb8+ {[%clk 0:00:02.2]}
45... Kd7 {[%clk 0:00:37.8]} 0-1

[Event "Early-Titled-Tuesday-Blitz-October-10-2023"]
[Site "Chess.com"]
[Date "2023.10.10"]
[Round "7"]
[White "topin8"]
[Black "ama18"]
[Result "1-0"]
[WhiteElo "2451"]
[BlackElo "2534"]
[TimeControl "180+1"]
[EndTime "9:15:26 PDT"]
[Termination "topin8 won by resignation"]

1. e4 {[%clk 0:02:50.8]} 1... c5 {[%clk 0:02:57.2]} 2. Nf3 {[%clk 0:02:51]} 2...
d6 {[%clk 0:02:55.9]} 3. c3 {[%clk 0:02:51.2]} 3... Nf6 {[%clk 0:02:55.4]} 4.
Be2 {[%clk 0:02:51.6]} 4... g6 {[%clk 0:02:55.1]} 5. O-O {[%clk 0:02:51.9]} 5...
Bg7 {[%clk 0:02:55.5]} 6. Bb5+ {[%clk 0:02:52.4]} 6... Nc6 {[%clk 0:02:54.7]} 7.
d3 {[%clk 0:01:40.2]} 7... O-O {[%clk 0:02:51.5]} 8. Re1 {[%clk 0:01:40.6]} 8...
Bg4 {[%clk 0:02:47.8]} 9. h3 {[%clk 0:01:39.5]} 9... Bxf3 {[%clk 0:02:48]} 10.
Qxf3 {[%clk 0:01:40.4]} 10... Rc8 {[%clk 0:02:47.3]} 11. Bf4 {[%clk 0:01:26]}
11... Nd7 {[%clk 0:02:46.6]} 12. Nd2 {[%clk 0:01:20.8]} 12... a6 {[%clk
0:02:45.9]} 13. Ba4 {[%clk 0:01:20.3]} 13... b5 {[%clk 0:02:44.2]} 14. Bb3
{[%clk 0:01:15.2]} 14... Nde5 {[%clk 0:02:44.3]} 15. Qe2 {[%clk 0:01:13.8]}
15... Kh8 {[%clk 0:02:42.8]} 16. a3 {[%clk 0:01:03.2]} 16... Qd7 {[%clk
0:02:41]} 17. Bg3 {[%clk 0:00:58.8]} 17... Qb7 {[%clk 0:02:26.5]} 18. f4 {[%clk
0:00:56.7]} 18... Nd7 {[%clk 0:02:26.6]} 19. Nf3 {[%clk 0:00:23.2]} 19... Na5
{[%clk 0:02:18.2]} 20. Bd5 {[%clk 0:00:22.9]} 20... Qc7 {[%clk 0:02:16.9]} 21.
Kh1 {[%clk 0:00:18.9]} 21... e6 {[%clk 0:02:17]} 22. Ba2 {[%clk 0:00:18.9]}
22... c4 {[%clk 0:02:17.1]} 23. d4 {[%clk 0:00:18.2]} 23... Rce8 {[%clk
0:02:13.4]} 24. Rad1 {[%clk 0:00:16.8]} 24... f5 {[%clk 0:02:13.3]} 25. exf5
{[%clk 0:00:16.1]} 25... gxf5 {[%clk 0:02:13.8]} 26. Ng5 {[%clk 0:00:13.9]}
26... Rf6 {[%clk 0:02:13.8]} 27. Qh5 {[%clk 0:00:13.5]} 27... Nf8 {[%clk
0:01:56.7]} 28. Qxe8 {[%clk 0:00:13.2]} 28... Qc6 {[%clk 0:01:47.4]} 29. Qxc6
{[%clk 0:00:12.7]} 29... Nxc6 {[%clk 0:01:48.3]} 30. d5 {[%clk 0:00:13.2]} 30...
exd5 {[%clk 0:01:46.9]} 31. Rxd5 {[%clk 0:00:14.1]} 31... Kg8 {[%clk 0:01:47.5]}
32. Bb1 {[%clk 0:00:13.9]} 32... h6 {[%clk 0:01:38.5]} 33. Nf3 {[%clk
0:00:13.8]} 33... Rg6 {[%clk 0:01:37]} 34. Bh4 {[%clk 0:00:12.7]} 34... Re6
{[%clk 0:01:35.6]} 35. Rxe6 {[%clk 0:00:12.4]} 35... Nxe6 {[%clk 0:01:36.3]} 36.
Bg3 {[%clk 0:00:11.4]} 36... Bf8 {[%clk 0:01:32.5]} 37. Bxf5 {[%clk 0:00:11.8]}
37... Nc5 {[%clk 0:01:32.3]} 38. Nd4 {[%clk 0:00:10.8]} 38... Ne7 {[%clk
0:01:30.5]} 39. Rxc5 {[%clk 0:00:10.7]} 39... dxc5 {[%clk 0:01:30.3]} 40. Be6+
{[%clk 0:00:11.6]} 40... Kh7 {[%clk 0:01:21.7]} 41. Nf5 {[%clk 0:00:11.7]} 41...
Nc6 {[%clk 0:01:20]} 42. Bd5 {[%clk 0:00:11.8]} 42... Na5 {[%clk 0:01:19.3]} 43.
Be4 {[%clk 0:00:11.7]} 43... Kg8 {[%clk 0:01:18.6]} 44. Bh4 {[%clk 0:00:11.8]}
44... Kf7 {[%clk 0:01:16.2]} 45. Ne3 {[%clk 0:00:12.1]} 45... Bd6 {[%clk
0:01:10.7]} 46. Bd5+ {[%clk 0:00:13]} 46... Kg6 {[%clk 0:01:10.3]} 47. f5+
{[%clk 0:00:13.1]} 47... Kh7 {[%clk 0:01:07.8]} 48. f6 {[%clk 0:00:12.7]} 48...
Nb3 {[%clk 0:01:04.1]} 49. f7 {[%clk 0:00:12.1]} 49... Nc1 {[%clk 0:00:53.4]}
50. Nf5 {[%clk 0:00:12]} 50... Bf8 {[%clk 0:00:53.6]} 51. Be7 {[%clk 0:00:11.7]}
51... Bxe7 {[%clk 0:00:54]} 52. Nxe7 {[%clk 0:00:11.9]} 52... Kg7 {[%clk
0:00:54.4]} 53. Ng6 {[%clk 0:00:12.1]} 1-0

[Event "Early-Titled-Tuesday-Blitz-October-10-2023"]
[Site "Chess.com"]
[Date "2023.10.10"]
[Round "7"]
[White "Goi_Manne"]
[Black "stratacticos"]
[Result "1-0"]
[WhiteElo "2293"]
[BlackElo "1790"]
[TimeControl "180+1"]
[EndTime "9:15:26 PDT"]
[Termination "Goi_Manne won on time"]

1. e4 {[%clk 0:03:00.9]} 1... c5 {[%clk 0:02:55.6]} 2. Nf3 {[%clk 0:02:58.6]}
2... Nc6 {[%clk 0:02:54.9]} 3. d4 {[%clk 0:02:54.4]} 3... cxd4 {[%clk
0:02:54.7]} 4. Nxd4 {[%clk 0:02:55.3]} 4... e5 {[%clk 0:02:54.5]} 5. Nb5 {[%clk
0:02:53.4]} 5... d6 {[%clk 0:02:54.1]} 6. N1c3 {[%clk 0:02:41.6]} 6... a6 {[%clk
0:02:53.8]} 7. Na3 {[%clk 0:02:41.7]} 7... b5 {[%clk 0:02:54.7]} 8. Nd5 {[%clk
0:02:41.2]} 8... Nce7 {[%clk 0:02:55]} 9. Bg5 {[%clk 0:02:22.3]} 9... f6 {[%clk
0:02:53.7]} 10. Be3 {[%clk 0:02:18.6]} 10... Rb8 {[%clk 0:02:48.3]} 11. Be2
{[%clk 0:02:15.1]} 11... Be6 {[%clk 0:02:47.5]} 12. O-O {[%clk 0:02:11.3]} 12...
Bxd5 {[%clk 0:02:47.3]} 13. exd5 {[%clk 0:02:12.2]} 13... Nf5 {[%clk 0:02:35]}
14. Qd3 {[%clk 0:02:05.2]} 14... Nxe3 {[%clk 0:02:32.7]} 15. Qxe3 {[%clk
0:02:06.1]} 15... Qb6 {[%clk 0:02:26.8]} 16. Qxb6 {[%clk 0:02:03.4]} 16... Rxb6
{[%clk 0:02:26.4]} 17. f4 {[%clk 0:02:03.8]} 17... exf4 {[%clk 0:02:12.3]} 18.
Rae1 {[%clk 0:02:02.1]} 18... Kf7 {[%clk 0:02:10.3]} 19. Rxf4 {[%clk 0:02:00.4]}
19... Ne7 {[%clk 0:02:09.7]} 20. Rd4 {[%clk 0:01:37.1]} 20... g6 {[%clk
0:02:03.8]} 21. c4 {[%clk 0:01:33.5]} 21... b4 {[%clk 0:02:01.3]} 22. Nc2 {[%clk
0:01:33.3]} 22... Nf5 {[%clk 0:01:55.1]} 23. Rd3 {[%clk 0:01:28]} 23... a5
{[%clk 0:01:49.7]} 24. Bg4 {[%clk 0:01:22.8]} 24... Be7 {[%clk 0:01:31.4]} 25.
Bxf5 {[%clk 0:01:21]} 25... gxf5 {[%clk 0:01:31]} 26. Nd4 {[%clk 0:01:21.8]}
26... f4 {[%clk 0:01:21.6]} 27. Rf1 {[%clk 0:01:20.3]} 27... Rc8 {[%clk
0:01:18.2]} 28. Nc6 {[%clk 0:01:20.2]} 28... Rbxc6 {[%clk 0:01:17.1]} 29. dxc6
{[%clk 0:01:21.1]} 29... Rxc6 {[%clk 0:01:17.2]} 30. Rxf4 {[%clk 0:01:21.4]}
30... Bd8 {[%clk 0:01:09.3]} 31. Rh4 {[%clk 0:01:18]} 31... Bb6+ {[%clk
0:01:03.1]} 32. Kf1 {[%clk 0:01:17.8]} 32... Kg6 {[%clk 0:00:21.3]} 33. Rg3+
{[%clk 0:01:13.3]} 33... Kf5 {[%clk 0:00:21.1]} 34. Rf3+ {[%clk 0:01:11.2]}
34... Kg6 {[%clk 0:00:20]} 35. Rhf4 {[%clk 0:01:07]} 35... Bd8 {[%clk
0:00:19.1]} 36. b3 {[%clk 0:01:06.3]} 36... a4 {[%clk 0:00:18.3]} 37. Rg4+
{[%clk 0:00:58.2]} 37... Kf7 {[%clk 0:00:17.2]} 38. Rh4 {[%clk 0:00:58.1]} 38...
Kg6 {[%clk 0:00:16.6]} 39. Rfh3 {[%clk 0:00:58]} 39... axb3 {[%clk 0:00:13]} 40.
axb3 {[%clk 0:00:55.3]} 40... Ra6 {[%clk 0:00:12.9]} 41. Rh6+ {[%clk 0:00:52.8]}
41... Kf5 {[%clk 0:00:11.1]} 42. Rxh7 {[%clk 0:00:52.7]} 42... Ra1+ {[%clk
0:00:09.6]} 43. Ke2 {[%clk 0:00:51.8]} 43... Ra2+ {[%clk 0:00:08.3]} 44. Kf3
{[%clk 0:00:51.1]} 44... Rb2 {[%clk 0:00:08.2]} 45. R7h5+ {[%clk 0:00:47]} 45...
Ke6 {[%clk 0:00:06.7]} 46. Ke4 {[%clk 0:00:45.5]} 1-0

[Event "Early-Titled-Tuesday-Blitz-October-10-2023"]
[Site "Chess.com"]
[Date "2023.10.10"]
[Round "7"]
[White "Anton_Demchenko"]
[Black "Legendinunknown"]
[Result "1-0"]
[WhiteElo "3015"]
[BlackElo "2828"]
[TimeControl "180+1"]
[EndTime "9:15:27 PDT"]
[Termination "Anton_Demchenko won by resignation"]

1. e4 {[%clk 0:02:56.8]} 1... c5 {[%clk 0:02:58.2]} 2. Nf3 {[%clk 0:02:56.1]}
2... d6 {[%clk 0:02:54.7]} 3. d4 {[%clk 0:02:56.2]} 3... cxd4 {[%clk 0:02:55.6]}
4. Nxd4 {[%clk 0:02:56.9]} 4... Nf6 {[%clk 0:02:55.7]} 5. Nc3 {[%clk 0:02:57.5]}
5... Nc6 {[%clk 0:02:55.1]} 6. Bg5 {[%clk 0:02:57]} 6... Bd7 {[%clk 0:02:53.3]}
7. Nb3 {[%clk 0:02:56.4]} 7... a6 {[%clk 0:02:50.5]} 8. Be2 {[%clk 0:02:54.5]}
8... e6 {[%clk 0:02:48.3]} 9. O-O {[%clk 0:02:53.9]} 9... Be7 {[%clk 0:02:48.3]}
10. Bxf6 {[%clk 0:02:53.8]} 10... gxf6 {[%clk 0:02:47.8]} 11. Bh5 {[%clk
0:02:53.7]} 11... Rg8 {[%clk 0:02:46]} 12. Kh1 {[%clk 0:02:53.6]} 12... Qc7
{[%clk 0:02:43.5]} 13. f4 {[%clk 0:02:50]} 13... Rg7 {[%clk 0:02:39.8]} 14. f5
{[%clk 0:02:47.1]} 14... O-O-O {[%clk 0:02:37.1]} 15. Ne2 {[%clk 0:02:44.1]}
15... Rdg8 {[%clk 0:02:34.3]} 16. Nf4 {[%clk 0:02:44.4]} 16... Kb8 {[%clk
0:02:26.8]} 17. Bxf7 {[%clk 0:02:34.6]} 17... Rxf7 {[%clk 0:02:22.7]} 18. fxe6
{[%clk 0:02:34.9]} 18... Rfg7 {[%clk 0:02:17.8]} 19. exd7 {[%clk 0:02:30]} 19...
Qxd7 {[%clk 0:02:18.7]} 20. Rf2 {[%clk 0:02:20.4]} 20... Bd8 {[%clk 0:02:14.9]}
21. Nd5 {[%clk 0:02:10.8]} 21... Ne5 {[%clk 0:02:10.9]} 22. Nd4 {[%clk
0:01:58.1]} 22... Ng4 {[%clk 0:02:06.5]} 23. Rd2 {[%clk 0:01:58.5]} 23... Qe8
{[%clk 0:02:00.5]} 24. Qf3 {[%clk 0:01:32.5]} 24... Rg5 {[%clk 0:01:46.1]} 25.
Qf4 {[%clk 0:01:13]} 25... Nxh2 {[%clk 0:01:20.1]} 26. Kxh2 {[%clk 0:00:48.8]}
26... Qh5+ {[%clk 0:01:18.3]} 27. Kg1 {[%clk 0:00:47.1]} 27... Qh3 {[%clk
0:01:18.5]} 28. Qh2 {[%clk 0:00:28.6]} 28... Qg4 {[%clk 0:01:06.8]} 29. Re1
{[%clk 0:00:23.8]} 29... Re5 {[%clk 0:01:03.7]} 30. Qf4 {[%clk 0:00:18.5]} 30...
Qh3 {[%clk 0:00:51.3]} 31. Re3 {[%clk 0:00:15.5]} 31... Qh5 {[%clk 0:00:46.6]}
32. Nf5 {[%clk 0:00:15.8]} 32... Rg4 {[%clk 0:00:43]} 33. Qh2 {[%clk 0:00:12.4]}
33... Qg5 {[%clk 0:00:37.2]} 34. Rde2 {[%clk 0:00:12.6]} 34... Rxd5 {[%clk
0:00:31.1]} 35. exd5 {[%clk 0:00:11.7]} 35... Bb6 {[%clk 0:00:31.7]} 36. Qxd6+
{[%clk 0:00:08]} 36... Ka7 {[%clk 0:00:32.3]} 37. Qe6 {[%clk 0:00:08.6]} 37...
Rf4 {[%clk 0:00:28.1]} 38. Ng3 {[%clk 0:00:05.5]} 38... Qxg3 {[%clk 0:00:27.3]}
39. Qxb6+ {[%clk 0:00:05.5]} 1-0

[Event "Early-Titled-Tuesday-Blitz-October-10-2023"]
[Site "Chess.com"]
[Date "2023.10.10"]
[Round "7"]
[White "PeshkaCh"]
[Black "elprimo2012mortis"]
[Result "0-1"]
[WhiteElo "2805"]
[BlackElo "2670"]
[TimeControl "180+1"]
[EndTime "9:15:28 PDT"]
[Termination "elprimo2012mortis won by checkmate"]

1. Nf3 {[%clk 0:03:00.9]} 1... d5 {[%clk 0:02:56.5]} 2. d4 {[%clk 0:02:51.5]}
2... Nf6 {[%clk 0:02:56.4]} 3. c4 {[%clk 0:02:51.1]} 3... e6 {[%clk 0:02:56.5]}
4. Nc3 {[%clk 0:02:50.4]} 4... dxc4 {[%clk 0:02:54.9]} 5. e4 {[%clk 0:02:49.9]}
5... b5 {[%clk 0:02:55.1]} 6. e5 {[%clk 0:02:47.8]} 6... Nd5 {[%clk 0:02:55.5]}
7. Nxb5 {[%clk 0:02:48.5]} 7... Nb6 {[%clk 0:02:55.8]} 8. Bg5 {[%clk 0:02:45]}
8... Bb4+ {[%clk 0:02:53.6]} 9. Nc3 {[%clk 0:02:44.4]} 9... Bxc3+ {[%clk
0:02:41.7]} 10. bxc3 {[%clk 0:02:45.3]} 10... Qd7 {[%clk 0:02:37.8]} 11. Nd2
{[%clk 0:02:43.5]} 11... Bb7 {[%clk 0:02:33.1]} 12. Nxc4 {[%clk 0:02:41.5]}
12... Nxc4 {[%clk 0:02:28.2]} 13. Bxc4 {[%clk 0:02:42.4]} 13... Qc6 {[%clk
0:02:14.1]} 14. Qb3 {[%clk 0:02:08.7]} 14... Qxg2 {[%clk 0:02:12.9]} 15. Rf1
{[%clk 0:02:07.2]} 15... O-O {[%clk 0:02:06.7]} 16. Be3 {[%clk 0:01:57.7]} 16...
Nd7 {[%clk 0:01:58.5]} 17. O-O-O {[%clk 0:01:54.8]} 17... Rab8 {[%clk
0:01:42.8]} 18. Rg1 {[%clk 0:01:50.8]} 18... Qf3 {[%clk 0:01:13.4]} 19. Rg3
{[%clk 0:01:47.2]} 19... Qh5 {[%clk 0:01:09]} 20. Rdg1 {[%clk 0:01:46.1]} 20...
Be4 {[%clk 0:00:58.5]} 21. Rxg7+ {[%clk 0:01:17.6]} 21... Kh8 {[%clk 0:00:58.6]}
22. Qa3 {[%clk 0:01:17.7]} 22... Rb1+ {[%clk 0:00:46.9]} 23. Kd2 {[%clk
0:01:17.7]} 23... Rfb8 {[%clk 0:00:44]} 24. Bb3 {[%clk 0:01:07.7]} 24... Nb6
{[%clk 0:00:21.4]} 25. Rxb1 {[%clk 0:00:53.4]} 25... Bxb1 {[%clk 0:00:21.3]} 26.
Rg5 {[%clk 0:00:39.7]} 26... Qf3 {[%clk 0:00:14.7]} 27. Rg3 {[%clk 0:00:25.8]}
27... Qf5 {[%clk 0:00:12.1]} 28. Bh6 {[%clk 0:00:22.4]} 28... Qxf2+ {[%clk
0:00:09.6]} 29. Kc1 {[%clk 0:00:17.3]} 29... Qe1+ {[%clk 0:00:09.7]} 30. Kb2
{[%clk 0:00:17]} 30... Nc4+ {[%clk 0:00:09.9]} 31. Ka1 {[%clk 0:00:16.9]} 31...
Nxa3 {[%clk 0:00:05.2]} 32. Bg7+ {[%clk 0:00:09.8]} 32... Kg8 {[%clk 0:00:05.5]}
33. Bf6+ {[%clk 0:00:05.2]} 33... Bg6+ {[%clk 0:00:05.6]} 34. Kb2 {[%clk
0:00:05.8]} 34... Nc4# {[%clk 0:00:06]} 0-1

[Event "Early-Titled-Tuesday-Blitz-October-10-2023"]
[Site "Chess.com"]
[Date "2023.10.10"]
[Round "7"]
[White "Flaccidmoves"]
[Black "viktorgen2021"]
[Result "0-1"]
[WhiteElo "2425"]
[BlackElo "2381"]
[TimeControl "180+1"]
[EndTime "9:15:30 PDT"]
[Termination "viktorgen2021 won on time"]

1. e4 {[%clk 0:03:00.9]} 1... g6 {[%clk 0:02:51]} 2. d4 {[%clk 0:03:00.3]} 2...
Bg7 {[%clk 0:02:50.7]} 3. f4 {[%clk 0:03:00.4]} 3... d6 {[%clk 0:02:49]} 4. Nf3
{[%clk 0:03:00]} 4... Nf6 {[%clk 0:02:49.7]} 5. e5 {[%clk 0:02:57]} 5... Nd5
{[%clk 0:02:26.1]} 6. Nc3 {[%clk 0:02:54.8]} 6... Nxc3 {[%clk 0:02:23.1]} 7.
bxc3 {[%clk 0:02:55.7]} 7... O-O {[%clk 0:02:22.5]} 8. Bd3 {[%clk 0:02:52.3]}
8... c5 {[%clk 0:02:22.7]} 9. O-O {[%clk 0:02:50.7]} 9... dxe5 {[%clk
0:02:05.2]} 10. dxe5 {[%clk 0:02:19.3]} 10... Nc6 {[%clk 0:02:04.3]} 11. Be3
{[%clk 0:02:18.3]} 11... Qa5 {[%clk 0:02:02.7]} 12. Qe1 {[%clk 0:01:55.9]} 12...
Bg4 {[%clk 0:01:47.1]} 13. Ng5 {[%clk 0:01:53.5]} 13... h6 {[%clk 0:01:42.4]}
14. Ne4 {[%clk 0:01:52.9]} 14... b6 {[%clk 0:01:34.2]} 15. h3 {[%clk 0:01:46.7]}
15... Bf5 {[%clk 0:01:34.3]} 16. g4 {[%clk 0:01:46.8]} 16... Be6 {[%clk
0:01:21.4]} 17. f5 {[%clk 0:01:36.6]} 17... Bd5 {[%clk 0:01:19.1]} 18. f6 {[%clk
0:01:32.2]} 18... Bh8 {[%clk 0:01:14.4]} 19. Bxh6 {[%clk 0:01:30.5]} 19... Rfe8
{[%clk 0:01:11.6]} 20. Qh4 {[%clk 0:01:02.3]} 20... Nxe5 {[%clk 0:00:35.2]} 21.
fxe7 {[%clk 0:00:44.9]} 21... Bxe4 {[%clk 0:00:31.8]} 22. Bxe4 {[%clk
0:00:43.1]} 22... Qxc3 {[%clk 0:00:24.6]} 23. Bxa8 {[%clk 0:00:19]} 23... Rxa8
{[%clk 0:00:25.5]} 24. Rae1 {[%clk 0:00:16.3]} 24... Re8 {[%clk 0:00:24.2]} 25.
Qf2 {[%clk 0:00:12.2]} 25... Qc4 {[%clk 0:00:17]} 26. Bf4 {[%clk 0:00:09.1]}
26... Nc6 {[%clk 0:00:16.2]} 27. Bd6 {[%clk 0:00:07.7]} 27... Bd4 {[%clk
0:00:16.4]} 28. Re3 {[%clk 0:00:07.1]} 28... Nxe7 {[%clk 0:00:12.8]} 29. Rfe1
{[%clk 0:00:04.9]} 29... Kh7 {[%clk 0:00:10.6]} 30. Kh2 {[%clk 0:00:04.7]} 30...
Nd5 {[%clk 0:00:09]} 31. Qxf7+ {[%clk 0:00:02.1]} 31... Kh6 {[%clk 0:00:09.1]}
32. Bf8+ {[%clk 0:00:01.3]} 32... Rxf8 {[%clk 0:00:08.3]} 33. Qxf8+ {[%clk
0:00:02.2]} 33... Bg7 {[%clk 0:00:08.9]} 34. Re5 {[%clk 0:00:03.1]} 34... Bxf8
{[%clk 0:00:08.5]} 35. g5+ {[%clk 0:00:01.9]} 35... Kg7 {[%clk 0:00:08.3]} 0-1